[Event "Schack-SM 2023: Mastarklassen"]
[Site "Helsingborg Arena, Mellersta Stenbocksgatan 14, Helsingborg, Sweden"]
[Date "2023.07.06"]
[Round "6.8"]
[White "Franzen, Per-Erik"]
[Black "Persson, Lars 1971"]
[Result "1-0"]
[TimeControl "90 minutes for 40 moves + 30 minutes for the rest of games + 30 seconds per move from move one."]
[WhiteElo "2025"]
[BlackElo "1941"]

1. c4 {[%clk 01:30:56]} {[%emt 00:00:04]} e5 {[%clk 01:28:27]} {[%emt
00:02:34]} 2. Nc3 {[%clk 01:30:37]} {[%emt 00:00:48]} d6 {[%clk 01:15:47]}
{[%emt 00:13:11]} 3. g3 {[%clk 01:30:27]} {[%emt 00:00:39]} Nf6 {[%clk
01:11:44]} {[%emt 00:04:33]} 4. Bg2 {[%clk 01:30:29]} {[%emt 00:00:28]} Be7
{[%clk 01:11:27]} {[%emt 00:00:48]} 5. Nf3 {[%clk 01:28:32]} {[%emt 00:02:25]}
c6 {[%clk 01:11:07]} {[%emt 00:00:52]} 6. d3 {[%clk 01:21:30]} {[%emt
00:07:32]} O-O {[%clk 01:09:02]} {[%emt 00:02:35]} 7. O-O {[%clk 01:20:53]}
{[%emt 00:01:06]} Qc7 {[%clk 00:56:44]} {[%emt 00:12:49]} 8. a3 {[%clk
01:14:18]} {[%emt 00:07:05]} Bg4 {[%clk 00:45:25]} {[%emt 00:11:49]} 9. Be3
{[%clk 00:58:19]} {[%emt 00:16:29]} Nbd7 {[%clk 00:33:39]} {[%emt 00:12:16]} 10.
Rc1 {[%clk 00:50:17]} {[%emt 00:08:32]} Bh5 {[%clk 00:31:13]} {[%emt 00:02:55]}
11. h3 {[%clk 00:44:40]} {[%emt 00:06:07]} Qb8 {[%clk 00:23:58]} {[%emt
00:07:46]} 12. Nh4 {[%clk 00:37:25]} {[%emt 00:07:44]} Rc8 {[%clk 00:22:06]}
{[%emt 00:02:23]} 13. Nf5 {[%clk 00:33:31]} {[%emt 00:04:23]} Bf8 {[%clk
00:22:13]} {[%emt 00:00:22]} 14. b4 {[%clk 00:27:54]} {[%emt 00:06:08]} Bg6
{[%clk 00:14:26]} {[%emt 00:08:17]} 15. Nh4 {[%clk 00:27:55]} {[%emt 00:00:28]}
Ne8 {[%clk 00:12:14]} {[%emt 00:02:44]} 16. f4 {[%clk 00:23:02]} {[%emt
00:05:22]} f6 {[%clk 00:10:27]} {[%emt 00:02:17]} 17. Nxg6 {[%clk 00:22:45]}
{[%emt 00:00:47]} hxg6 {[%clk 00:10:54]} {[%emt 00:00:02]} 18. d4 {[%clk
00:21:45]} {[%emt 00:01:31]} Qc7 {[%clk 00:09:01]} {[%emt 00:02:24]} 19. g4
{[%clk 00:16:53]} {[%emt 00:05:21]} Qd8 {[%clk 00:08:10]} {[%emt 00:01:21]} 20.
Qd3 {[%clk 00:16:25]} {[%emt 00:00:58]} exf4 {[%clk 00:07:20]} {[%emt
00:01:20]} 21. Bxf4 {[%clk 00:16:19]} {[%emt 00:00:37]} g5 {[%clk 00:07:30]}
{[%emt 00:00:19]} 22. Bd2 {[%clk 00:13:22]} {[%emt 00:03:27]} Qe7 {[%clk
00:06:39]} {[%emt 00:01:22]} 23. Qg6 {[%clk 00:12:01]} {[%emt 00:01:50]} Qf7
{[%clk 00:03:45]} {[%emt 00:03:25]} 24. Qxf7+ {[%clk 00:12:04]} {[%emt
00:00:26]} Kxf7 {[%clk 00:04:13]} {[%emt 00:00:02]} 25. Bxg5 {[%clk 00:12:11]}
{[%emt 00:00:23]} Nb6 {[%clk 00:04:32]} {[%emt 00:00:12]} 26. c5 {[%clk
00:09:58]} {[%emt 00:02:43]} Nc4 {[%clk 00:04:17]} {[%emt 00:00:44]} 27. Ra1
{[%clk 00:07:34]} {[%emt 00:02:54]} a5 {[%clk 00:03:57]} {[%emt 00:00:50]} 28.
Bf4 {[%clk 00:04:18]} {[%emt 00:03:45]} axb4 {[%clk 00:02:44]} {[%emt
00:01:44]} 29. axb4 {[%clk 00:04:46]} {[%emt 00:00:03]} Ra3 {[%clk 00:02:43]}
{[%emt 00:00:30]} 30. Rxa3 {[%clk 00:04:24]} {[%emt 00:00:52]} Nxa3 {[%clk
00:03:11]} {[%emt 00:00:02]} 31. Ra1 {[%clk 00:03:36]} {[%emt 00:01:18]} Nc2
{[%clk 00:03:03]} {[%emt 00:00:38]} 32. Ra7 {[%clk 00:03:55]} {[%emt 00:00:10]}
Rc7 {[%clk 00:01:51]} {[%emt 00:01:44]} 33. b5 {[%clk 00:02:33]} {[%emt
00:01:51]} Nxd4 {[%clk 00:01:21]} {[%emt 00:01:00]} 34. b6 {[%clk 00:01:41]}
{[%emt 00:01:22]} Rd7 {[%clk 00:01:32]} {[%emt 00:00:20]} 35. e3 {[%clk
00:01:51]} {[%emt 00:00:19]} dxc5 {[%clk 00:01:26]} {[%emt 00:00:36]} 36. exd4
{[%clk 00:02:02]} {[%emt 00:00:20]} cxd4 {[%clk 00:01:24]} {[%emt 00:00:31]} 37.
Bxc6 {[%clk 00:01:35]} {[%emt 00:00:57]} Re7 {[%clk 00:00:32]} {[%emt
00:01:23]} 38. Bd5+ {[%clk 00:01:20]} {[%emt 00:00:45]} Kg6 {[%clk 00:01:01]}
{[%emt 00:00:01]} 39. Na4 {[%clk 00:01:10]} {[%emt 00:00:39]} Re1+ {[%clk
00:01:13]} {[%emt 00:00:18]} 40. Kf2 {[%clk 00:01:35]} {[%emt 00:00:05]} Ra1
{[%clk 00:01:15]} {[%emt 00:00:29]} 41. Be4+ {[%clk 00:00:53]} {[%emt
00:01:11]} f5 {[%clk 00:24:10]} {[%emt 00:07:35]} 42. Bxf5+ {[%clk 00:30:04]}
{[%emt 00:01:19]} Kf6 {[%clk 00:24:18]} {[%emt 00:00:22]} 43. Nb2 {[%clk
00:26:05]} {[%emt 00:04:29]} Rh1 {[%clk 00:23:02]} {[%emt 00:01:46]} 44. Be4
{[%clk 00:20:42]} {[%emt 00:05:52]} Rxh3 {[%clk 00:22:41]} {[%emt 00:00:51]} 45.
Rxb7 {[%clk 00:18:15]} {[%emt 00:02:58]} g5 {[%clk 00:04:10]} {[%emt 00:19:01]}
46. Rb8 {[%clk 00:11:47]} {[%emt 00:06:58]} Bd6 {[%clk 00:01:06]} {[%emt
00:03:35]} 47. Rxe8 {[%clk 00:06:48]} {[%emt 00:05:29]} gxf4 {[%clk 00:01:13]}
{[%emt 00:00:22]} 48. b7 {[%clk 00:06:59]} {[%emt 00:00:19]} Rb3 {[%clk
00:01:09]} {[%emt 00:00:34]} 49. Nc4 {[%clk 00:05:55]} {[%emt 00:01:34]} d3
{[%clk 00:00:52]} {[%emt 00:00:48]} 50. Nxd6 {[%clk 00:03:53]} {[%emt
00:02:32]} Rb2+ {[%clk 00:01:02]} {[%emt 00:00:20]} 51. Ke1 {[%clk 00:02:55]}
1-0

[Event "Schack-SM 2023: Veteran-SM 65+"]
[Site "Helsingborg Arena, Mellersta Stenbocksgatan 14, Helsingborg, Sweden"]
[Date "2023.07.06"]
[Round "6.6"]
[White "Ekelund, Kurt"]
[Black "Holst, Conny"]
[Result "0-1"]
[TimeControl "90 minutes for 40 moves + 30 minutes for the rest of games + 30 seconds per move from move one."]
[BlackTitle "FM"]
[WhiteElo "1952"]
[BlackElo "2156"]

1. e4 {[%clk 01:30:58]} c5 {[%clk 01:30:53]} {[%emt 00:00:08]} 2. Nf3 {[%clk
01:30:58]} {[%emt 00:00:30]} d6 {[%clk 01:31:11]} {[%emt 00:00:13]} 3. d4
{[%clk 01:31:20]} {[%emt 00:00:06]} cxd4 {[%clk 01:31:30]} {[%emt 00:00:12]} 4.
Nxd4 {[%clk 01:31:42]} {[%emt 00:00:07]} Nf6 {[%clk 01:31:49]} {[%emt
00:00:12]} 5. Nc3 {[%clk 01:31:58]} {[%emt 00:00:14]} Nc6 {[%clk 01:32:13]}
{[%emt 00:00:06]} 6. Be2 {[%clk 01:31:46]} {[%emt 00:00:42]} g6 {[%clk
01:31:54]} {[%emt 00:00:50]} 7. O-O {[%clk 01:31:35]} {[%emt 00:00:40]} Bg7
{[%clk 01:32:00]} {[%emt 00:00:24]} 8. Nb3 {[%clk 01:31:14]} {[%emt 00:00:52]}
O-O {[%clk 01:31:27]} {[%emt 00:01:02]} 9. Bg5 {[%clk 01:31:15]} {[%emt
00:00:29]} Be6 {[%clk 01:28:40]} {[%emt 00:03:17]} 10. Kh1 {[%clk 01:27:12]}
{[%emt 00:04:33]} Rc8 {[%clk 01:22:48]} {[%emt 00:06:23]} 11. f4 {[%clk
01:25:31]} {[%emt 00:02:10]} Na5 {[%clk 01:20:47]} {[%emt 00:02:32]} 12. e5
{[%clk 01:24:19]} {[%emt 00:01:41]} Nxb3 {[%clk 01:07:31]} {[%emt 00:13:46]} 13.
axb3 {[%clk 01:06:35]} {[%emt 00:18:14]} dxe5 {[%clk 01:01:08]} {[%emt
00:06:54]} 14. Qxd8 {[%clk 00:56:56]} {[%emt 00:10:08]} Rfxd8 {[%clk 01:01:15]}
{[%emt 00:00:22]} 15. Rxa7 {[%clk 00:56:59]} {[%emt 00:00:28]} Nd5 {[%clk
00:52:23]} {[%emt 00:09:23]} 16. Nxd5 {[%clk 00:51:14]} {[%emt 00:06:15]} Bxd5
{[%clk 00:51:55]} {[%emt 00:00:58]} 17. c4 {[%clk 00:50:44]} {[%emt 00:00:59]}
Bc6 {[%clk 00:45:37]} {[%emt 00:06:48]} 18. fxe5 {[%clk 00:47:23]} {[%emt
00:03:51]} Bxe5 {[%clk 00:44:02]} {[%emt 00:02:06]} 19. Bf3 {[%clk 00:45:28]}
{[%emt 00:02:24]} Bd4 {[%clk 00:40:06]} {[%emt 00:04:26]} 20. Bxc6 {[%clk
00:37:23]} {[%emt 00:08:35]} Bxa7 {[%clk 00:39:17]} {[%emt 00:01:19]} 21. Bxb7
{[%clk 00:33:48]} {[%emt 00:04:05]} Rb8 {[%clk 00:33:24]} {[%emt 00:06:23]} 22.
Bd5 {[%clk 00:32:49]} {[%emt 00:01:30]} Rxd5 {[%clk 00:30:38]} {[%emt
00:03:16]} 23. cxd5 {[%clk 00:32:05]} {[%emt 00:01:13]} f6 {[%clk 00:30:59]}
{[%emt 00:00:09]} 24. Bd2 {[%clk 00:30:38]} {[%emt 00:01:57]} Rxb3 {[%clk
00:29:51]} {[%emt 00:01:39]} 25. Bc3 {[%clk 00:30:54]} {[%emt 00:00:13]} Bc5
{[%clk 00:29:38]} {[%emt 00:00:43]} 26. g3 {[%clk 00:30:12]} {[%emt 00:01:12]}
h5 {[%clk 00:27:38]} {[%emt 00:02:30]} 27. Ra1 {[%clk 00:27:40]} {[%emt
00:03:03]} Bd6 {[%clk 00:26:11]} {[%emt 00:01:56]} 28. Kg2 {[%clk 00:26:46]}
{[%emt 00:01:23]} Kf7 {[%clk 00:25:48]} {[%emt 00:00:54]} 29. Ra7 {[%clk
00:26:08]} {[%emt 00:01:08]} g5 {[%clk 00:23:44]} {[%emt 00:02:35]} 30. h3
{[%clk 00:25:56]} {[%emt 00:00:41]} Rb5 {[%clk 00:22:13]} {[%emt 00:02:01]} 31.
Ra5 {[%clk 00:26:14]} {[%emt 00:00:12]} Rxa5 {[%clk 00:21:31]} {[%emt
00:01:13]} 32. Bxa5 {[%clk 00:26:37]} {[%emt 00:00:06]} g4 {[%clk 00:21:38]}
{[%emt 00:00:23]} 33. Bd2 {[%clk 00:24:16]} {[%emt 00:02:51]} Ke8 {[%clk
00:21:15]} {[%emt 00:00:53]} 34. hxg4 {[%clk 00:20:16]} {[%emt 00:04:30]} hxg4
{[%clk 00:21:14]} {[%emt 00:00:32]} 35. Kf2 {[%clk 00:20:20]} {[%emt 00:00:25]}
Kd7 {[%clk 00:19:30]} {[%emt 00:02:14]} 36. Be1 {[%clk 00:20:16]} {[%emt
00:00:33]} Bc5+ {[%clk 00:18:03]} {[%emt 00:01:58]} 37. Ke2 {[%clk 00:20:19]}
{[%emt 00:00:27]} Kd6 {[%clk 00:18:10]} {[%emt 00:00:23]} 38. b4 {[%clk
00:20:20]} {[%emt 00:00:29]} Bb6 {[%clk 00:17:36]} {[%emt 00:01:05]} 0-1

[Event "Schack-SM 2023: Veteran-SM 50+"]
[Site "Helsingborg Arena, Mellersta Stenbocksgatan 14, Helsingborg, Sweden"]
[Date "2023.07.06"]
[Round "6.6"]
[White "Larsson, Erik 1969"]
[Black "Gamback, Bjorn"]
[Result "1/2-1/2"]
[TimeControl "90 minutes for 40 moves + 30 minutes for the rest of games + 30 seconds per move from move one."]
[BlackTitle "CM"]
[WhiteElo "1534"]
[BlackElo "2048"]

1. e4 {[%clk 01:30:57]} {[%emt 00:00:02]} c5 {[%clk 01:29:01]} {[%emt
00:02:00]} 2. Nf3 {[%clk 01:31:18]} {[%emt 00:00:09]} d6 {[%clk 01:29:17]}
{[%emt 00:00:14]} 3. Bb5+ {[%clk 01:31:41]} {[%emt 00:00:07]} Nd7 {[%clk
01:29:33]} {[%emt 00:00:14]} 4. c3 {[%clk 01:31:28]} {[%emt 00:00:42]} Ngf6
{[%clk 01:29:37]} {[%emt 00:00:26]} 5. Qe2 {[%clk 01:31:53]} {[%emt 00:00:06]}
a6 {[%clk 01:29:43]} {[%emt 00:00:24]} 6. Ba4 {[%clk 01:32:16]} {[%emt
00:00:07]} b5 {[%clk 01:20:12]} {[%emt 00:10:01]} 7. Bc2 {[%clk 01:32:37]}
{[%emt 00:00:08]} Bb7 {[%clk 01:20:35]} {[%emt 00:00:07]} 8. O-O {[%clk
01:32:51]} {[%emt 00:00:15]} e5 {[%clk 01:20:18]} {[%emt 00:00:48]} 9. d4
{[%clk 01:33:07]} {[%emt 00:00:14]} Be7 {[%clk 01:20:08]} {[%emt 00:00:40]} 10.
d5 {[%clk 01:33:05]} {[%emt 00:00:33]} Nb6 {[%clk 01:15:37]} {[%emt 00:05:01]}
11. b3 {[%clk 01:32:55]} {[%emt 00:00:40]} h5 {[%clk 01:13:46]} {[%emt
00:02:19]} 12. a4 {[%clk 01:29:33]} {[%emt 00:03:53]} bxa4 {[%clk 01:10:39]}
{[%emt 00:03:37]} 13. bxa4 {[%clk 01:29:32]} {[%emt 00:00:31]} h4 {[%clk
01:10:35]} {[%emt 00:00:34]} 14. a5 {[%clk 01:26:40]} {[%emt 00:03:23]} Nbd7
{[%clk 01:11:03]} {[%emt 00:00:02]} 15. h3 {[%clk 01:26:46]} {[%emt 00:00:24]}
Nh5 {[%clk 01:10:40]} {[%emt 00:00:53]} 16. Na3 {[%clk 01:25:54]} {[%emt
00:01:22]} g5 {[%clk 01:09:08]} {[%emt 00:02:01]} 17. Nh2 {[%clk 01:25:25]}
{[%emt 00:00:59]} Nf4 {[%clk 01:05:41]} {[%emt 00:03:57]} 18. Bxf4 {[%clk
01:12:45]} {[%emt 00:13:10]} gxf4 {[%clk 01:05:28]} {[%emt 00:00:43]} 19. Nc4
{[%clk 01:11:54]} {[%emt 00:01:22]} Kf8 {[%clk 01:04:29]} {[%emt 00:01:29]} 20.
Ba4 {[%clk 01:10:15]} {[%emt 00:02:08]} Rb8 {[%clk 01:04:23]} {[%emt 00:00:35]}
21. Rab1 {[%clk 01:06:38]} {[%emt 00:04:09]} f5 {[%clk 01:02:23]} {[%emt
00:02:30]} 22. Rb2 {[%clk 01:05:20]} {[%emt 00:01:48]} fxe4 {[%clk 01:02:02]}
{[%emt 00:00:50]} 23. Bc6 {[%clk 00:49:34]} {[%emt 00:16:16]} Qc7 {[%clk
00:46:38]} {[%emt 00:15:55]} 24. Rfb1 {[%clk 00:45:17]} {[%emt 00:04:47]} Bxc6
{[%clk 00:46:10]} {[%emt 00:00:58]} 25. dxc6 {[%clk 00:45:23]} {[%emt
00:00:23]} Rxb2 {[%clk 00:46:25]} {[%emt 00:00:15]} 26. Qxb2 {[%clk 00:45:33]}
{[%emt 00:00:20]} Qxc6 {[%clk 00:46:24]} {[%emt 00:00:31]} 27. Qb7 {[%clk
00:45:37]} {[%emt 00:00:27]} Qa4 {[%clk 00:46:33]} {[%emt 00:00:21]} 28. Qxa6
{[%clk 00:29:44]} {[%emt 00:05:39]} Qa2 {[%clk 00:41:29]} {[%emt 00:16:18]} 29.
Rd1 {[%clk 00:19:18]} {[%emt 00:10:55]} Qe2 {[%clk 00:36:44]} {[%emt 00:05:15]}
30. Rxd6 {[%clk 00:16:23]} {[%emt 00:03:25]} e3 {[%clk 00:24:22]} {[%emt
00:12:52]} 31. Ng4 {[%clk 00:15:56]} {[%emt 00:00:57]} Qe1+ {[%clk 00:17:29]}
{[%emt 00:07:23]} 32. Kh2 {[%clk 00:16:04]} {[%emt 00:00:23]} exf2 {[%clk
00:17:43]} {[%emt 00:00:16]} 33. Nxf2 {[%clk 00:15:21]} {[%emt 00:01:12]} Qxf2
{[%clk 00:15:17]} {[%emt 00:02:56]} 34. Rxd7 {[%clk 00:14:42]} {[%emt
00:01:07]} Qg3+ {[%clk 00:15:34]} {[%emt 00:00:15]} 35. Kg1 {[%clk 00:14:53]}
{[%emt 00:00:20]} Qe1+ {[%clk 00:15:51]} {[%emt 00:00:13]} 36. Kh2 {[%clk
00:15:08]} {[%emt 00:00:14]} 1/2-1/2

[Event "Schack-SM 2023: Mastarklassen"]
[Site "Helsingborg Arena, Mellersta Stenbocksgatan 14, Helsingborg, Sweden"]
[Date "2023.07.06"]
[Round "6.9"]
[White "Carlstrom, Niklas"]
[Black "Troberg Eskola, Love"]
[Result "1-0"]
[TimeControl "90 minutes for 40 moves + 30 minutes for the rest of games + 30 seconds per move from move one."]
[WhiteElo "2125"]
[BlackElo "2038"]

1. e4 {[%clk 01:30:53]} {[%emt 00:00:06]} e5 {[%clk 01:30:56]} {[%emt
00:00:06]} 2. Nf3 {[%clk 01:30:46]} {[%emt 00:00:36]} Nc6 {[%clk 01:31:01]}
{[%emt 00:00:26]} 3. Nc3 {[%clk 01:30:04]} {[%emt 00:01:11]} Nf6 {[%clk
01:31:26]} {[%emt 00:00:05]} 4. d4 {[%clk 01:30:05]} {[%emt 00:00:29]} exd4
{[%clk 01:31:51]} {[%emt 00:00:06]} 5. Nd5 {[%clk 01:30:20]} {[%emt 00:00:15]}
Nxd5 {[%clk 01:22:41]} {[%emt 00:09:40]} 6. exd5 {[%clk 01:30:42]} {[%emt
00:00:08]} Bb4+ {[%clk 01:22:55]} {[%emt 00:00:16]} 7. Bd2 {[%clk 01:28:33]}
{[%emt 00:02:38]} Qe7+ {[%clk 01:22:31]} {[%emt 00:00:54]} 8. Be2 {[%clk
01:26:51]} {[%emt 00:02:11]} d3 {[%clk 01:15:03]} {[%emt 00:07:59]} 9. cxd3
{[%clk 01:26:29]} {[%emt 00:00:51]} Bxd2+ {[%clk 01:14:03]} {[%emt 00:01:32]}
10. Qxd2 {[%clk 01:26:43]} {[%emt 00:00:15]} Nb4 {[%clk 01:14:01]} {[%emt
00:00:32]} 11. O-O {[%clk 01:21:53]} {[%emt 00:05:20]} Nxd5 {[%clk 01:06:26]}
{[%emt 00:08:06]} 12. d4 {[%clk 01:16:10]} {[%emt 00:06:11]} O-O {[%clk
01:05:20]} {[%emt 00:01:37]} 13. Bc4 {[%clk 01:15:29]} {[%emt 00:01:11]} Nb6
{[%clk 01:04:18]} {[%emt 00:01:32]} 14. Bd3 {[%clk 01:14:59]} {[%emt 00:00:59]}
d5 {[%clk 01:03:32]} {[%emt 00:01:16]} 15. Rae1 {[%clk 01:08:02]} {[%emt
00:07:27]} Qd6 {[%clk 00:56:53]} {[%emt 00:07:10]} 16. Re3 {[%clk 00:58:46]}
{[%emt 00:09:46]} Nc4 {[%clk 00:45:45]} {[%emt 00:11:39]} 17. Bxc4 {[%clk
00:58:45]} {[%emt 00:00:31]} dxc4 {[%clk 00:46:08]} {[%emt 00:00:06]} 18. Ne5
{[%clk 00:54:51]} {[%emt 00:04:23]} Be6 {[%clk 00:29:08]} {[%emt 00:17:31]} 19.
Rg3 {[%clk 00:52:54]} {[%emt 00:02:26]} f6 {[%clk 00:24:46]} {[%emt 00:04:53]}
20. Qh6 {[%clk 00:46:41]} {[%emt 00:06:43]} Qe7 {[%clk 00:22:28]} {[%emt
00:02:49]} 21. Nf3 {[%clk 00:46:04]} {[%emt 00:01:05]} Kh8 {[%clk 00:21:47]}
{[%emt 00:01:13]} 22. Qh4 {[%clk 00:38:57]} {[%emt 00:07:36]} Rae8 {[%clk
00:17:10]} {[%emt 00:05:07]} 23. Qe4 {[%clk 00:26:21]} {[%emt 00:13:05]} Qb4
{[%clk 00:11:25]} {[%emt 00:06:16]} 24. Qc2 {[%clk 00:18:38]} {[%emt 00:08:12]}
c6 {[%clk 00:09:50]} {[%emt 00:02:06]} 25. h4 {[%clk 00:16:40]} {[%emt
00:02:27]} Bd5 {[%clk 00:07:56]} {[%emt 00:02:26]} 26. h5 {[%clk 00:15:31]}
{[%emt 00:01:38]} Be4 {[%clk 00:07:37]} {[%emt 00:00:50]} 27. Qc1 {[%clk
00:15:43]} {[%emt 00:00:16]} h6 {[%clk 00:06:00]} {[%emt 00:02:08]} 28. Nh4
{[%clk 00:13:16]} {[%emt 00:02:57]} Kh7 {[%clk 00:05:57]} {[%emt 00:00:33]} 29.
Re1 {[%clk 00:09:54]} {[%emt 00:03:52]} Bd3 {[%clk 00:03:49]} {[%emt 00:02:38]}
30. Rge3 {[%clk 00:07:23]} {[%emt 00:03:00]} Rxe3 {[%clk 00:03:53]} {[%emt
00:00:27]} 31. Rxe3 {[%clk 00:03:04]} {[%emt 00:04:48]} Rd8 {[%clk 00:04:14]}
{[%emt 00:00:10]} 32. Rg3 {[%clk 00:02:03]} {[%emt 00:01:30]} Rxd4 {[%clk
00:03:30]} {[%emt 00:01:15]} 33. Ng6 {[%clk 00:02:24]} {[%emt 00:00:08]} Be2
{[%clk 00:02:59]} {[%emt 00:01:02]} 34. Qe3 {[%clk 00:02:16]} {[%emt 00:00:37]}
Rd1+ {[%clk 00:01:54]} {[%emt 00:01:37]} 35. Kh2 {[%clk 00:02:39]} {[%emt
00:00:05]} Qe1 {[%clk 00:01:49]} {[%emt 00:00:36]} 36. Nf8+ {[%clk 00:02:16]}
{[%emt 00:00:52]} Kh8 {[%clk 00:01:52]} {[%emt 00:00:28]} 37. Ng6+ {[%clk
00:02:40]} {[%emt 00:00:07]} Kh7 {[%clk 00:02:15]} {[%emt 00:00:07]} 38. Nf8+
{[%clk 00:03:05]} {[%emt 00:00:04]} Kg8 {[%clk 00:00:56]} {[%emt 00:01:50]} 39.
Qe6+ {[%clk 00:01:09]} {[%emt 00:02:26]} Kxf8 {[%clk 00:01:08]} {[%emt
00:00:18]} 40. Re3 {[%clk 00:01:29]} {[%emt 00:00:09]} Qh1+ {[%clk 00:00:33]}
{[%emt 00:01:05]} 41. Kg3 {[%clk 00:01:51]} {[%emt 00:00:08]} Rd8 {[%clk
00:25:20]} {[%emt 00:05:43]} 42. Qe7+ {[%clk 00:32:02]} {[%emt 00:00:19]} Kg8
{[%clk 00:25:45]} {[%emt 00:00:05]} 43. Qxd8+ {[%clk 00:32:20]} {[%emt
00:00:12]} Kh7 {[%clk 00:26:09]} {[%emt 00:00:05]} 44. Rxe2 {[%clk 00:32:04]}
{[%emt 00:00:47]} Qxh5 {[%clk 00:26:30]} {[%emt 00:00:09]} 45. Qe8 {[%clk
00:30:55]} {[%emt 00:01:39]} Qg5+ {[%clk 00:26:35]} {[%emt 00:00:26]} 46. Kh2
{[%clk 00:31:02]} {[%emt 00:00:21]} Qf4+ {[%clk 00:26:39]} {[%emt 00:00:27]} 47.
g3 {[%clk 00:31:00]} {[%emt 00:00:31]} Qc1 {[%clk 00:26:09]} {[%emt 00:01:01]}
48. Qe4+ {[%clk 00:30:53]} {[%emt 00:00:37]} Kh8 {[%clk 00:26:30]} {[%emt
00:00:09]} 49. Qg6 {[%clk 00:31:01]} {[%emt 00:00:21]} 1-0